bitfinex-derivatives/quotes_BTCF0:USTF0_20251002
["timestamp","ask_amount","ask_price","bid_price","bid_amount"]
[1759392948174,0.8681478,118410.0,118400.0,0.1210829]
[1759392948373,0.8681478,118410.0,118400.0,0.38098462]
[1759392950377,0.8681478,118410.0,118400.0,0.1210829]
[1759392950571,0.8681478,118410.0,118400.0,0.38098462]
[1759392954074,0.78346,118410.0,118400.0,0.38098462]
[1759392961285,0.8678678,118410.0,118400.0,0.38098462]
[1759392961875,0.80945878,118410.0,118400.0,0.38098462]
[1759392962182,0.78346,118410.0,118400.0,0.38098462]
[1759392963484,0.78346,118410.0,118400.0,0.1210829]
[1759392963684,0.78346,118410.0,118400.0,0.38098462]
[1759392966382,0.47875522,118420.0,118410.0,0.0844078]
[1759392966584,1.28857141,118420.0,118410.0,0.38065952]
[1759392967678,1.28957141,118420.0,118410.0,0.38065952]
[1759392968176,1.28857141,118420.0,118410.0,0.38065952]
[1759392968483,1.28957141,118420.0,118410.0,0.38065952]
[1759392969988,0.52781141,118420.0,118410.0,0.38065952]
[1759392970286,1.28957141,118420.0,118410.0,0.38065952]
[1759392972890,0.52781141,118420.0,118410.0,0.38065952]
[1759392974190,0.52781141,118420.0,118410.0,0.38065115]
[1759392974391,0.52681141,118420.0,118410.0,0.38265115]
[1759392974590,0.52681141,118420.0,118410.0,0.38465115]
[1759392975289,0.50095522,118420.0,118410.0,0.38465115]
[1759392978095,0.52680902,118420.0,118410.0,0.38465115]
[1759392979793,0.52680895,118420.0,118410.0,0.38465115]
[1759392980787,0.44240545,118420.0,118410.0,0.38465115]
[1759392980994,0.41655172,118420.0,118410.0,0.38465115]
[1759392982593,0.50095242,118420.0,118410.0,0.30024335]
[1759392982800,0.7970279,118420.0,118410.0,0.02693]
[1759392983097,0.7970279,118420.0,118410.0,0.004]
[1759392983289,0.7970279,118420.0,118410.0,0.28716335]
[1759392983491,0.7970279,118420.0,118410.0,0.37157255]
[1759392983895,0.53713455,118420.0,118410.0,0.37157255]
[1759392984094,0.7970279,118420.0,118410.0,0.37157255]
[1759392985397,0.7970279,118420.0,118410.0,0.38433255]
[1759392985596,0.7866979,118420.0,118410.0,0.38433255]
[1759392987499,0.52680455,118420.0,118410.0,0.38433255]
[1759392987799,0.7866979,118420.0,118410.0,0.38433255]
[1759392988497,0.75071312,118420.0,118410.0,0.38433255]
[1759392988898,0.77656448,118420.0,118410.0,0.1244392]
[1759392989198,0.75071312,118420.0,118410.0,0.38433255]
[1759392989998,0.49081977,118420.0,118410.0,0.38433255]
[1759392990198,0.75071312,118420.0,118410.0,0.38433255]
[1759392990601,0.77656434,118420.0,118410.0,0.38433255]
[1759392990898,0.75071312,118420.0,118410.0,0.38433255]
[1759392991399,0.77656474,118420.0,118410.0,0.38433255]
[1759392992601,0.77656474,118420.0,118410.0,0.40110124]
[1759392993203,1.43645809,118420.0,118410.0,0.02076869]
[1759392993696,1.17656474,118420.0,118410.0,0.02076869]
[1759392994001,1.17656474,118420.0,118410.0,0.04403869]
[1759392997205,0.91667139,118420.0,118410.0,0.04403869]
[1759392997406,1.17656474,118420.0,118410.0,0.04403869]
[1759392999513,0.77656474,118420.0,118410.0,0.04403869]
[1759393001213,0.77656474,118420.0,118410.0,0.30393204]
[1759393001816,0.77656474,118420.0,118410.0,0.31669204]
[1759393002514,0.51667139,118420.0,118410.0,0.31669204]
[1759393002813,0.77656474,118420.0,118410.0,0.31669204]
[1759393003715,0.77656474,118420.0,118410.0,0.05679869]
[1759393004013,0.77656474,118420.0,118410.0,0.31669204]
[1759393005014,0.77656474,118420.0,118410.0,0.05679869]
[1759393005216,0.77656474,118420.0,118410.0,0.31669204]
[1759393006920,0.76643196,118420.0,118410.0,0.31669204]
[1759393007119,0.75271048,118420.0,118410.0,0.31669204]
[1759393008121,0.49281713,118420.0,118410.0,0.31669204]
[1759393008422,0.75271048,118420.0,118410.0,0.31669204]
[1759393009817,0.49281713,118420.0,118410.0,0.31669204]
[1759393010014,0.75271048,118420.0,118410.0,0.31669204]
[1759393010319,0.75271048,118420.0,118410.0,0.05679869]
[1759393010525,0.75271048,118420.0,118410.0,0.31669204]
[1759393011017,1.01260383,118420.0,118410.0,0.05679869]
[1759393012419,0.75271048,118420.0,118410.0,0.05679869]
[1759393012618,1.01260383,118420.0,118410.0,0.05679869]
[1759393012923,0.49281713,118420.0,118410.0,0.05679869]
[1759393013223,1.01260383,118420.0,118410.0,0.05679869]
[1759393013724,0.49281713,118420.0,118410.0,0.05679869]
[1759393013918,1.01260383,118420.0,118410.0,0.05679869]
[1759393017016,0.49281713,118420.0,118410.0,0.05679869]
[1759393017320,1.01260383,118420.0,118410.0,0.05679869]
[1759393018123,0.49281713,118420.0,118410.0,0.05679869]
[1759393018321,1.01260383,118420.0,118410.0,0.05679869]
[1759393019321,0.75271048,118420.0,118410.0,0.31669204]
[1759393020818,0.49281713,118420.0,118410.0,0.31669204]
[1759393021017,0.75271048,118420.0,118410.0,0.31669204]
[1759393021221,0.49281713,118420.0,118410.0,0.31669204]
[1759393021423,0.75271048,118420.0,118410.0,0.40109984]
[1759393025827,0.49281713,118420.0,118410.0,0.40109984]
[1759393026027,0.75271048,118420.0,118410.0,0.40109984]
[1759393026427,0.75271048,118420.0,118410.0,0.05679869]
[1759393026628,0.75271048,118420.0,118410.0,0.31669204]
[1759393026826,1.01260383,118420.0,118410.0,0.05679869]
[1759393027726,1.01260383,118420.0,118410.0,0.31669204]
[1759393028630,1.01250483,118420.0,118410.0,0.31669204]
[1759393030131,1.01250483,118420.0,118410.0,0.05679869]
[1759393030431,1.01250483,118420.0,118410.0,0.04403869]
[1759393030626,0.49271813,118420.0,118410.0,0.05670869]
[1759393030826,1.01250483,118420.0,118410.0,0.05670869]
[1759393032930,0.49271813,118420.0,118410.0,0.05670869]
[1759393033130,1.01250483,118420.0,118410.0,0.05670869]
[1759393033631,1.01250483,118420.0,118410.0,0.31660204]
[1759393034234,0.75264198,118420.0,118410.0,0.05670869]
[1759393035130,0.75264198,118420.0,118410.0,0.14111639]
[1759393038331,0.49271813,118420.0,118410.0,0.14111639]
[1759393038531,0.75264198,118420.0,118410.0,0.14111639]
[1759393044039,0.75264198,118420.0,118410.0,0.05670869]
[1759393045133,0.75264198,118420.0,118410.0,0.14111649]
[1759393048939,0.49271813,118420.0,118410.0,0.14111649]
[1759393049145,0.75272643,118420.0,118410.0,0.14111649]
[1759393049951,0.49280258,118420.0,118410.0,0.14111649]
[1759393050143,0.75272643,118420.0,118410.0,0.14111649]
[1759393051546,1.15272643,118420.0,118410.0,0.004]
[1759393051746,0.75272643,118420.0,118410.0,0.1101378]
[1759393052052,0.75272643,118420.0,118410.0,0.004]
[1759393052751,0.75272643,118420.0,118410.0,0.02173]
[1759393052950,0.75572643,118420.0,118410.0,0.02173]
[1759393057959,0.75572643,118420.0,118410.0,0.1061378]
[1759393059660,0.75572643,118420.0,118410.0,0.1194778]
[1759393059859,0.49580258,118420.0,118410.0,0.1194778]
[1759393060155,0.75572643,118420.0,118410.0,0.1194778]
[1759393062862,0.75572643,118420.0,118410.0,0.1061378]
[1759393063961,0.75572643,118420.0,118410.0,0.1194778]
[1759393067257,0.49580258,118420.0,118410.0,0.1194778]
[1759393067464,0.75572643,118420.0,118410.0,0.1194778]
[1759393067665,0.49580258,118420.0,118410.0,0.37940165]
[1759393067962,0.49580258,118420.0,118410.0,0.1194778]
[1759393068363,0.49580258,118420.0,118410.0,0.37940165]
[1759393068755,0.41140188,118420.0,118410.0,0.37940165]
[1759393069061,0.38555026,118420.0,118410.0,1.0393255]
[1759393069259,0.33949834,118420.0,118410.0,1.0393255]
[1759393069655,0.33949834,118420.0,118410.0,0.77940165]
[1759393070562,0.33649834,118420.0,118410.0,0.77940165]
[1759393070762,0.26839534,118420.0,118410.0,0.77940165]
[1759393071757,0.26839534,118420.0,118410.0,0.78540165]
[1759393071962,0.26839534,118420.0,118410.0,0.87374817]
[1759393072368,0.26839534,118420.0,118410.0,1.12767202]
[1759393072665,0.15401542,118420.0,118410.0,1.13367202]
[1759393079178,0.13016636,118420.0,118410.0,1.13367202]
[1759393080480,0.13016636,118420.0,118410.0,0.61382432]
[1759393080681,0.13016636,118420.0,118410.0,1.13367202]
[1759393081374,0.13016636,118420.0,118410.0,0.87374817]
[1759393081879,0.15295636,118420.0,118410.0,0.87374817]
[1759393082181,0.13016636,118420.0,118410.0,0.87374817]
[1759393083885,0.15295636,118420.0,118410.0,0.87374817]
[1759393084280,0.13016636,118420.0,118410.0,0.87374817]
[1759393086782,0.13016636,118420.0,118410.0,1.13367202]
[1759393088287,0.13016636,118420.0,118410.0,0.61382432]
[1759393088586,0.13016636,118420.0,118410.0,1.13367202]
[1759393089186,0.11644753,118420.0,118410.0,1.13367202]
[1759393091789,0.1063167,118420.0,118410.0,1.13367202]
[1759393092390,0.1063167,118420.0,118410.0,0.61382432]
[1759393092587,0.1063167,118420.0,118410.0,1.13367202]
[1759393096186,0.1063167,118420.0,118410.0,1.13349138]
[1759393096688,0.1063167,118420.0,118410.0,0.61382432]
[1759393096893,0.1291067,118420.0,118410.0,0.61382432]
[1759393097091,0.1291067,118420.0,118410.0,1.13349138]
[1759393097992,0.1291067,118420.0,118410.0,1.15027757]
[1759393098888,0.1295967,118420.0,118410.0,1.15027757]
[1759393099289,0.11587787,118420.0,118410.0,1.15027757]
[1759393101494,0.4601109,118420.0,118410.0,0.40209752]
[1759393101698,0.4601109,118420.0,118410.0,0.14226399]
[1759393101893,0.4601109,118420.0,118410.0,0.40209752]
[1759393102587,0.4601109,118420.0,118410.0,0.39609752]
[1759393102793,0.8601109,118420.0,118410.0,0.13926649]
[1759393102995,0.8601109,118420.0,118410.0,0.39910002]
[1759393103901,0.8601109,118420.0,118410.0,0.39610002]
[1759393104100,0.8601109,118420.0,118410.0,0.39910002]
[1759393105402,0.84997926,118420.0,118410.0,0.39910002]
[1759393105604,0.91582724,118420.0,118410.0,0.39910002]
[1759393109208,0.90210731,118420.0,118410.0,0.39910002]
[1759393113112,0.55787428,118420.0,118410.0,0.39910002]
[1759393113310,0.53459428,118420.0,118410.0,0.39910002]
[1759393113712,0.55574428,118420.0,118410.0,0.65893355]
[1759393113914,0.0687463,118420.0,118410.0,0.65893355]
[1759393114811,0.0687463,118420.0,118410.0,0.75601779]
[1759393115406,0.05861541,118420.0,118410.0,0.75601779]
[1759393117913,0.05861541,118420.0,118410.0,0.23635073]
[1759393118115,0.05861541,118420.0,118410.0,0.75601779]
[1759393119215,0.04489649,118420.0,118410.0,0.75601779]
[1759393119718,0.04489649,118420.0,118410.0,1.15601779]
[1759393120218,0.02569007,118420.0,118410.0,0.63635073]
[1759393120408,0.02569007,118420.0,118410.0,0.75601779]
[1759393125421,0.0155596,118420.0,118410.0,0.75601779]
[1759393128921,0.0367096,118420.0,118410.0,0.75601779]
[1759393129222,0.02299125,118420.0,118410.0,0.75601779]
[1759393131922,0.02299125,118420.0,118410.0,0.49618426]
[1759393133723,0.00184125,118420.0,118410.0,0.49618426]
[1759393133926,0.00184125,118420.0,118410.0,0.75601779]
[1759393134324,0.02424125,118420.0,118410.0,0.75601779]
[1759393135325,0.02424125,118420.0,118410.0,0.49618426]
[1759393135627,0.01411041,118420.0,118410.0,0.49618426]
[1759393136323,0.01411041,118420.0,118410.0,0.75601779]
[1759393136524,0.01419271,118420.0,118410.0,0.75601779]
[1759393138429,8.23e-05,118420.0,118410.0,0.75601779]
[1759393139228,0.0224,118430.0,118420.0,0.1210165]
[1759393139430,0.36662703,118440.0,118430.0,0.1210153]
[1759393139622,0.1067935,118440.0,118430.0,0.39814146]
[1759393140129,0.1067935,118440.0,118430.0,0.13830793]
[1759393140333,0.1067935,118440.0,118430.0,0.39814146]
[1759393140834,0.1097935,118440.0,118430.0,0.39814146]
[1759393141330,0.1067935,118440.0,118430.0,0.39814146]
[1759393141534,0.11556336,118440.0,118430.0,0.39814146]
[1759393142238,0.11856336,118440.0,118430.0,0.39814146]
[1759393143236,0.03416986,118440.0,118430.0,0.39814146]
[1759393144736,0.03116986,118440.0,118430.0,0.39814146]
[1759393145437,0.02103942,118440.0,118430.0,0.39814146]
[1759393149441,0.00179,118440.0,118430.0,0.39814146]
[1759393150646,0.0861778,118440.0,118430.0,0.39814146]
[1759393152148,0.34601133,118440.0,118430.0,0.39814146]
[1759393153147,0.34601133,118440.0,118430.0,0.13830793]
[1759393153349,0.34601133,118440.0,118430.0,0.39814146]
[1759393155247,0.37152414,118440.0,118430.0,0.39814146]
[1759393156250,0.37152414,118440.0,118430.0,0.31374616]
[1759393157650,0.37152414,118440.0,118430.0,0.05391263]
[1759393158454,0.37154443,118440.0,118430.0,0.05391263]
[1759393160354,0.11169061,118440.0,118430.0,0.05391263]
[1759393160557,0.37154443,118440.0,118430.0,0.05391263]
[1759393160948,0.11169061,118440.0,118430.0,0.05391263]
[1759393161757,0.11169061,118440.0,118430.0,0.13830583]
[1759393163058,0.0861778,118440.0,118430.0,0.13830583]
[1759393168760,0.07245928,118440.0,118430.0,0.13830583]
[1759393177364,0.09802141,118440.0,118430.0,0.13830583]
[1759393177562,0.07245928,118440.0,118430.0,0.13830583]
[1759393182066,0.09802144,118440.0,118430.0,0.13830583]
[1759393182571,0.07245928,118440.0,118430.0,0.13830583]
[1759393182966,0.07545928,118440.0,118430.0,0.13830583]
[1759393183154,0.07845928,118440.0,118430.0,0.13830583]
[1759393184270,0.10402173,118440.0,118430.0,0.13830583]
[1759393188270,0.07845928,118440.0,118430.0,0.13830583]
[1759393189172,0.10402387,118440.0,118430.0,0.13830583]
[1759393192674,0.07845928,118440.0,118430.0,0.13830583]
[1759393193974,0.3383131,118440.0,118430.0,0.1210132]
[1759393194274,0.3383131,118440.0,118430.0,0.1384148]
[1759393194575,0.36387785,118440.0,118430.0,0.1384148]
[1759393197477,0.36387785,118440.0,118430.0,0.0540216]
[1759393197778,0.36387785,118440.0,118430.0,0.1384143]
[1759393198683,0.10402403,118440.0,118430.0,0.1384143]
[1759393201170,0.36387785,118440.0,118430.0,0.03662]
[1759393201776,0.76387785,118440.0,118430.0,0.03662]
[1759393202577,0.76387785,118440.0,118430.0,0.01351]
[1759393202772,0.0843926,118430.0,118420.0,0.1375212]
[1759393202976,0.0706735,118430.0,118420.0,0.1375212]
[1759393207766,0.06054241,118430.0,118420.0,0.1375212]
[1759393208373,0.34424422,118440.0,118430.0,0.1207526]
[1759393208572,0.36976196,118440.0,118430.0,0.1207526]
[1759393209482,0.37276196,118440.0,118430.0,0.1207526]
[1759393209674,0.37576196,118440.0,118430.0,0.1207526]
[1759393211177,0.11590814,118440.0,118430.0,0.1207526]
[1759393211378,0.03151774,118440.0,118430.0,0.38060642]
[1759393211573,0.006,118440.0,118430.0,0.38060642]
[1759393212276,0.00859933,118450.0,118440.0,0.1207448]
[1759393212582,0.15267355,118460.0,118450.0,0.1207381]
[1759393212779,0.19343679,118460.0,118450.0,0.38059192]
[1759393213073,0.20196679,118460.0,118450.0,0.38059192]
[1759393215179,0.20196679,118460.0,118450.0,0.1217381]
[1759393215773,0.20196679,118460.0,118450.0,0.03736]
[1759393216981,0.20196679,118460.0,118450.0,0.1217412]
[1759393220283,0.46171663,118460.0,118450.0,0.38149104]
[1759393220583,0.43636234,118460.0,118450.0,0.38149104]
[1759393221185,0.43636234,118460.0,118450.0,0.1217412]
[1759393221386,0.1766125,118460.0,118450.0,0.38149104]
[1759393221682,0.43636234,118460.0,118450.0,0.38149104]
[1759393221885,0.1766125,118460.0,118450.0,0.38149104]
[1759393222079,0.43636234,118460.0,118450.0,0.38149104]
[1759393222385,0.1766125,118460.0,118450.0,0.38149104]
[1759393222684,0.43636544,118460.0,118450.0,0.38149104]
[1759393224586,0.1766156,118460.0,118450.0,0.38149104]
[1759393224780,0.43636544,118460.0,118450.0,0.38149104]
[1759393225487,0.1766156,118460.0,118450.0,0.38149104]
[1759393225684,0.0922416,118460.0,118450.0,0.38149104]
[1759393225885,0.43636564,118460.0,118450.0,0.38149104]
[1759393226284,0.1766158,118460.0,118450.0,0.38149104]
[1759393226485,0.0922416,118460.0,118450.0,0.38149104]
[1759393226684,0.35199144,118460.0,118450.0,0.1217412]
[1759393226886,0.35199144,118460.0,118450.0,0.38149104]
[1759393227384,0.0837116,118460.0,118450.0,0.38149104]
[1759393227592,0.00853,118480.0,118470.0,0.1198369]
[1759393227791,0.11273232,118490.0,118480.0,0.03547]
[1759393227990,0.11273232,118490.0,118480.0,0.29521984]
[1759393227991,0.13792518,118490.0,118480.0,0.29521984]
[1759393228182,0.41338313,118490.0,118480.0,0.29521984]
[1759393229190,0.15763329,118490.0,118480.0,0.29521984]
[1759393229392,0.41738313,118490.0,118480.0,0.29521984]
[1759393229595,0.41738313,118490.0,118480.0,0.37957954]
[1759393230092,0.41338313,118490.0,118480.0,0.37957954]
[1759393230292,0.38819027,118490.0,118480.0,0.37957954]
[1759393230892,0.13244043,118490.0,118480.0,0.37957954]
[1759393231092,0.39219027,118490.0,118480.0,0.37957954]
[1759393231996,0.46082646,118490.0,118480.0,0.37957954]
[1759393232897,0.20107662,118490.0,118480.0,0.37957954]
[1759393233097,0.46082646,118490.0,118480.0,0.37957954]
[1759393234693,0.20107662,118490.0,118480.0,0.37957954]
[1759393234900,0.46082646,118490.0,118480.0,0.37957954]
[1759393235696,0.20107662,118490.0,118480.0,0.63932938]
[1759393235898,0.19254662,118490.0,118480.0,0.63932938]
[1759393236105,0.0883443,118490.0,118480.0,0.63932938]
[1759393236305,0.0883443,118490.0,118480.0,1.05631699]
[1759393238610,0.0883443,118490.0,118480.0,1.14993401]
[1759393239507,0.0883443,118490.0,118480.0,0.74993401]
[1759393239805,0.0843443,118490.0,118480.0,0.75193401]
[1759393240006,0.35262544,118500.0,118490.0,0.1198227]
[1759393240213,0.35262544,118500.0,118490.0,0.37957254]
[1759393240908,0.35262544,118500.0,118490.0,0.1198227]
[1759393241111,0.35362544,118500.0,118490.0,0.37957254]
[1759393241410,0.35362544,118500.0,118490.0,0.29521984]
[1759393241708,0.35362544,118500.0,118490.0,0.03547]
[1759393241909,0.6291902,118500.0,118490.0,0.29521984]
[1759393242116,1.12122292,118500.0,118490.0,0.01343]
[1759393242408,0.0928827,118490.0,118480.0,0.05245761]
[1759393242610,0.35263254,118490.0,118480.0,0.05245761]
[1759393243710,0.35263254,118490.0,118480.0,0.05445761]
[1759393244308,0.35263254,118490.0,118480.0,0.05245761]
[1759393244504,0.35263254,118490.0,118480.0,0.05445761]
[1759393247298,0.75263254,118490.0,118480.0,0.05445761]
[1759393249312,0.77751966,118490.0,118480.0,0.05445761]
[1759393249604,0.75263254,118490.0,118480.0,0.05445761]
[1759393249804,0.77752003,118490.0,118480.0,0.05445761]
[1759393258422,0.77752003,118490.0,118480.0,0.31420745]
[1759393259221,0.77752003,118490.0,118480.0,0.05445761]
[1759393260616,0.11777019,118490.0,118480.0,0.39856435]
[1759393261019,0.37752003,118490.0,118480.0,0.39856435]
[1759393264214,0.11777019,118490.0,118480.0,0.39856435]
[1759393264418,0.37752003,118490.0,118480.0,0.39856435]
[1759393269234,0.11777019,118490.0,118480.0,0.39856435]
[1759393272729,0.11777019,118490.0,118480.0,0.65831419]
[1759393272928,0.11777019,118490.0,118480.0,0.39856435]
[1759393273322,0.16731335,118500.0,118480.0,1.05831419]
[1759393273528,0.20080539,118500.0,118490.0,0.37923964]
[1759393273923,0.46055523,118500.0,118490.0,0.37923964]
[1759393274633,0.46255523,118500.0,118490.0,0.37923964]
[1759393275228,0.46155523,118500.0,118490.0,0.37923964]
[1759393275733,0.20180539,118500.0,118490.0,0.37923964]
[1759393277031,0.46155523,118500.0,118490.0,0.37923964]
[1759393277434,0.46155523,118500.0,118490.0,0.1194898]
[1759393277732,0.46155523,118500.0,118490.0,0.37923964]
[1759393280034,0.20180539,118500.0,118490.0,0.37923964]
[1759393280236,0.46155523,118500.0,118490.0,0.37923964]
[1759393280636,0.20180539,118500.0,118490.0,0.37923964]
[1759393281135,0.46155523,118500.0,118490.0,0.37923964]
[1759393282231,0.20180539,118500.0,118490.0,0.1194898]
[1759393290144,0.20180539,118500.0,118490.0,0.03514]
[1759393295347,0.46138428,118500.0,118490.0,0.03514]
[1759393295848,0.20180539,118500.0,118490.0,0.03514]
[1759393297047,0.46138428,118500.0,118490.0,0.03514]
[1759393308353,0.46125007,118500.0,118490.0,0.03514]
[1759393310755,0.20167118,118500.0,118490.0,0.03514]
[1759393310955,0.46125007,118500.0,118490.0,0.03514]
[1759393314966,0.0928797,118490.0,118480.0,0.05287893]
[1759393315255,0.37728642,118490.0,118480.0,0.05287893]
[1759393315662,0.35245859,118490.0,118480.0,0.05287893]
[1759393315861,0.11770548,118490.0,118480.0,0.05287893]
[1759393316057,0.37728437,118490.0,118480.0,0.05287893]
[1759393316462,0.37728437,118490.0,118480.0,0.05487893]
[1759393316765,0.37728437,118490.0,118480.0,0.05287893]
[1759393316951,0.37728437,118490.0,118480.0,0.05487893]
[1759393318663,0.35245859,118490.0,118480.0,0.05487893]
[1759393320567,0.0928797,118490.0,118480.0,0.05487893]
[1759393321169,0.11770375,118490.0,118480.0,0.05487893]
[1759393322373,0.11770375,118490.0,118480.0,0.13923583]
[1759393322768,0.11770375,118490.0,118480.0,0.39881472]
[1759393322969,0.0928797,118490.0,118480.0,0.39881472]
[1759393325368,0.0928797,118490.0,118480.0,0.13923583]
[1759393325574,0.0928797,118490.0,118480.0,0.39881472]
[1759393338784,0.0928797,118490.0,118480.0,0.13923583]
[1759393339081,0.0928797,118490.0,118480.0,0.39881472]
[1759393339283,0.0928797,118490.0,118480.0,0.13923583]
[1759393339484,0.0928797,118490.0,118480.0,0.39881472]
[1759393339784,0.0928797,118490.0,118480.0,0.31445782]
[1759393340083,0.11773036,118490.0,118480.0,0.31445782]
[1759393340685,0.11773036,118490.0,118480.0,0.39881462]
[1759393341083,0.11773036,118490.0,118480.0,0.13923573]
[1759393341485,0.0928797,118490.0,118480.0,0.13923573]
[1759393342287,0.35250459,118490.0,118480.0,0.39886062]
[1759393346691,0.0928797,118490.0,118480.0,0.39886062]
[1759393346984,0.35250459,118490.0,118480.0,0.39886062]
[1759393348886,0.32866547,118490.0,118480.0,0.39886062]
[1759393349576,0.06904058,118490.0,118480.0,0.65848551]
[1759393350386,0.32866547,118490.0,118480.0,0.65848551]
[1759393351189,0.32866547,118490.0,118480.0,0.39886062]
[1759393353398,0.32866547,118490.0,118480.0,0.65848551]
[1759393353798,0.06904058,118490.0,118480.0,0.65848551]
[1759393357400,0.00853,118490.0,118480.0,0.65848551]
[1759393357599,0.0928869,118490.0,118480.0,0.65848551]
[1759393357998,0.0928869,118490.0,118480.0,0.39886062]
[1759393359402,0.35251179,118490.0,118480.0,0.39886062]
[1759393363408,0.0928869,118490.0,118480.0,0.39886062]
[1759393366901,0.11773394,118490.0,118480.0,0.13923573]
[1759393367097,0.11773394,118490.0,118480.0,0.39886062]
[1759393368710,0.37735883,118490.0,118480.0,0.65848551]
[1759393369509,0.11773394,118490.0,118480.0,0.65848551]
[1759393371710,0.16731765,118500.0,118490.0,0.1191669]
[1759393371909,0.1065367,118510.0,118500.0,0.119159]
[1759393372101,0.36616159,118510.0,118500.0,0.37878389]
[1759393372305,0.36616159,118510.0,118500.0,0.29443489]
[1759393373110,0.76616159,118510.0,118500.0,0.02201]
[1759393373313,0.106539,118500.0,118490.0,0.29443489]
[1759393373513,0.35703764,118500.0,118490.0,0.29443489]
[1759393373814,0.35703764,118500.0,118490.0,0.03481]
[1759393374020,0.37753496,118500.0,118490.0,0.03481]
[1759393374210,0.63715985,118500.0,118490.0,0.03481]
[1759393374411,0.63715985,118500.0,118490.0,0.29443489]
[1759393374610,0.37753496,118500.0,118490.0,0.29443489]
[1759393375115,0.44541652,118500.0,118490.0,0.29443489]
[1759393376721,0.44741652,118500.0,118490.0,0.29443489]
[1759393377820,0.18779163,118500.0,118490.0,0.29443489]
[1759393378015,0.44741652,118500.0,118490.0,0.29443489]
[1759393378314,0.70704141,118500.0,118490.0,0.03481]
[1759393378511,0.70704141,118500.0,118490.0,0.02201]
[1759393378707,0.44741652,118500.0,118490.0,0.28163489]
[1759393379616,0.44741652,118500.0,118490.0,0.31181367]
[1759393380224,0.44741652,118500.0,118490.0,0.05218878]
[1759393380517,0.726305,118500.0,118490.0,0.03481]
[1759393381020,0.70704141,118500.0,118490.0,0.03481]
[1759393381213,0.70704141,118500.0,118490.0,0.02201]
[1759393383715,0.73150322,118500.0,118490.0,0.03481]
[1759393383917,0.73150322,118500.0,118490.0,0.02201]
[1759393386525,0.731503,118500.0,118490.0,0.02201]
[1759393386720,0.731503,118500.0,118490.0,0.03481]
[1759393389226,0.47187811,118500.0,118490.0,0.03481]
[1759393393431,0.46175204,118500.0,118490.0,0.03481]
[1759393394130,0.72137693,118500.0,118490.0,0.03481]
[1759393394326,0.20212715,118500.0,118490.0,0.29443489]
[1759393394526,0.16395329,118500.0,118490.0,0.03481]
[1759393394725,0.16395329,118500.0,118490.0,0.29443489]
[1759393395128,0.16395329,118500.0,118490.0,0.37878699]
[1759393401040,0.09137888,118500.0,118490.0,1.13606144]
[1759393403334,0.02349732,118500.0,118490.0,1.13606144]
[1759393403535,0.01337261,118500.0,118490.0,1.13606144]
[1759393403735,0.002,118500.0,118490.0,1.13606144]
[1759393404137,0.02302381,118500.0,118490.0,1.13606144]
[1759393404337,0.02302381,118500.0,118490.0,0.87629227]
[1759393404534,0.15167465,118510.0,118500.0,0.084345]
[1759393404837,0.15167465,118510.0,118500.0,0.46769045]
[1759393405737,0.15967465,118510.0,118500.0,0.46769045]
[1759393406434,0.0962439,118510.0,118500.0,1.12717106]
[1759393406643,0.0962439,118510.0,118500.0,1.14395326]
[1759393407339,0.02890775,118510.0,118500.0,1.14395326]
[1759393407640,0.1073265,118540.0,118530.0,0.05281346]
[1759393407839,0.13124524,118540.0,118530.0,0.31229407]
[1759393408434,0.1073265,118540.0,118530.0,0.31229407]
[1759393408636,0.12875942,118540.0,118530.0,0.31229407]
[1759393408938,0.13775942,118540.0,118530.0,0.39661767]
[1759393410238,0.05344292,118540.0,118530.0,0.39661767]
[1759393410446,0.03043292,118540.0,118530.0,0.65609828]
[1759393411248,0.09815669,118540.0,118530.0,0.39661767]
[1759393411747,0.08915669,118540.0,118530.0,0.74522661]
[1759393411947,0.0843144,118550.0,118540.0,0.0978565]
[1759393412142,0.0843144,118550.0,118540.0,0.29497061]
[1759393412345,0.02301,118560.0,118550.0,0.0978491]
[1759393412545,0.1073123,118560.0,118550.0,0.29497061]
[1759393414239,0.0843023,118560.0,118550.0,0.29497061]
[1759393414439,0.1073123,118560.0,118550.0,0.29497061]
[1759393414639,0.17424246,118560.0,118550.0,0.29497061]
[1759393414938,0.17424246,118560.0,118550.0,0.29697061]
[1759393415449,0.15123246,118560.0,118550.0,0.29697061]
[1759393416239,0.17198892,118560.0,118550.0,0.29697061]
[1759393417342,0.17198892,118560.0,118550.0,0.38128001]
[1759393417545,0.08768662,118560.0,118550.0,0.38128001]
[1759393417843,0.0842993,118570.0,118550.0,0.38128001]
[1759393418044,0.1073093,118570.0,118560.0,0.29497061]
[1759393418442,0.0842993,118570.0,118560.0,0.29497061]
[1759393418649,0.02077544,118570.0,118560.0,0.63875352]
[1759393418944,0.0842952,118570.0,118560.0,0.29497061]
[1759393419145,0.13023247,118570.0,118560.0,0.29497061]
[1759393419542,0.12823247,118570.0,118560.0,0.29497061]
[1759393419743,0.13023247,118570.0,118560.0,0.29497061]
[1759393420136,0.13123247,118570.0,118560.0,0.29497061]
[1759393420846,0.12823247,118570.0,118560.0,0.29797061]
[1759393422535,0.10522247,118570.0,118560.0,0.29797061]
[1759393423635,0.17343487,118570.0,118560.0,0.29797061]
[1759393425750,0.17343487,118570.0,118560.0,0.38227291]
[1759393425945,0.17343487,118570.0,118560.0,0.64175352]
[1759393427750,0.17343487,118570.0,118560.0,0.38227291]
[1759393427949,0.17343487,118570.0,118560.0,0.29797061]
[1759393429850,0.17343487,118570.0,118560.0,0.38227291]
[1759393431753,0.17343487,118570.0,118560.0,0.1227923]
[1759393431954,0.17343487,118570.0,118560.0,0.38227291]
[1759393435255,0.19692696,118570.0,118560.0,0.38227291]
[1759393437458,0.21855696,118570.0,118560.0,0.38227291]
[1759393437860,0.19692696,118570.0,118560.0,0.38227291]
[1759393440364,0.21855696,118570.0,118560.0,0.38227291]
[1759393440763,0.19692696,118570.0,118560.0,0.38227291]
[1759393442570,0.21855696,118570.0,118560.0,0.38227291]
[1759393443167,0.21855696,118570.0,118560.0,0.29797061]
[1759393443662,0.21855696,118570.0,118560.0,0.38227281]
[1759393450778,0.21855696,118570.0,118560.0,0.29797061]
[1759393451286,0.21855696,118570.0,118560.0,0.38227301]
[1759393456085,0.11263176,118570.0,118560.0,0.64175362]
[1759393456774,0.10251249,118570.0,118560.0,0.64175362]
[1759393456975,0.18680759,118570.0,118560.0,0.64175362]
[1759393458184,0.1633155,118570.0,118560.0,0.64175362]
[1759393463086,0.1633155,118570.0,118560.0,0.1227924]
[1759393463281,0.1525075,118570.0,118560.0,0.64175362]
[1759393463487,0.14961264,118570.0,118560.0,0.64175362]
[1759393464286,0.17200264,118570.0,118560.0,0.6411908]
[1759393464483,0.20034096,118570.0,118560.0,0.6411908]
[1759393466778,0.19022193,118570.0,118560.0,0.6411908]
[1759393467488,0.19022193,118570.0,118560.0,0.6441908]
[1759393468689,0.16783193,118570.0,118560.0,0.6441908]
[1759393468988,0.08353683,118570.0,118560.0,0.6441908]
[1759393474490,0.02833832,118570.0,118560.0,0.6441908]
[1759393474685,0.02275561,118600.0,118590.0,0.03478]
[1759393474686,0.12942151,118600.0,118590.0,0.03478]